Cogmind - Beta 17.1 @@@ ROGUE MODE // 2026.09.21 @ 17:15:14 Player: Caluan Result: Destroyed by as-44600 with Assembled Heavy Rifle Performance ------------- Evolutions (0) 0 Regions Visited (2) 400 Robots Destroyed (29) 145 Value Destroyed (488) 488 Prototype IDs (2) 40 Alien Tech Used (0) 0 Bonus (0) 0 TOTAL SCORE: 1073 Bonus ------- None Cogmind --------- Core Integrity 0/250 Matter 295/300 Energy 250/250 System Corruption 0% Temperature Cool (0) Movement Walking (190) Ox1 Location -10/Mines Parts ------- > --- POWER (1) -------- Ion Engine > --- PROPULSION (2) --- Carbon-fiber Leg > --- UTILITY (2) ------ Large Storage Unit > --- WEAPON (2) ------- Hammer Hammer > --- INVENTORY (15) --- High-capacity Storage Unit Experimental Sensor Array Target Analyzer Hammer Hammer Hammer Peak State ------------ > --- POWER ------------ Ion Engine > --- PROPULSION ------- Aluminum Leg Carbon-fiber Leg > --- UTILITY ---------- Large Storage Unit > --- WEAPON ----------- Hammer Hammer > --- INVENTORY -------- Ion Engine High-capacity Storage Unit Experimental Sensor Array Target Analyzer Hammer Hammer Hammer [Rating: 9] Favorites ----------- Power Ion Engine Engine Ion Engine Propulsion Aluminum Leg Treads Light Treads Leg Aluminum Leg Utility Large Storage Unit Storage Large Storage Unit Weapon Hammer Ballistic Gun Assault Rifle Impact Weapon Hammer Build | -11 -10 -10 ------- Run | Yrd Mat Min Slots Evolved . | . . . Power . | . . . Propulsion . | . . . Utility . | . . . Weapon . | . . . Parts Attached 15 | 8 5 2 Power 2 | 1 . 1 Engine 2 | 1 . 1 Core . | . . . Reactor . | . . . Propulsion 6 | 4 1 1 Treads 2 | 2 . . Leg 4 | 2 1 1 Wheel . | . . . Hover . | . . . Flight . | . . . Utility 3 | 1 2 . Device . | . . . Storage 3 | 1 2 . Processor . | . . . Hackware . | . . . Protection . | . . . Artifact . | . . . Weapon 4 | 2 2 . Energy Gun . | . . . Energy Cannon . | . . . Ballistic Gun 2 | 2 . . Ballistic Cannon . | . . . Launcher . | . . . Special Weapon . | . . . Impact Weapon 2 | . 2 . Slashing Weapon . | . . . Piercing Weapon . | . . . Special Melee Weapon . | . . . Unidentified Prototypes . | . . . Parts Lost 3 | . 1 2 Power . | . . . Propulsion 3 | . 1 2 Utility . | . . . Weapon . | . . . Highest Loss Streak 1 | . 1 1 To Critical Strikes . | . . . Average Backups 4 | . 3 6 Power . | . 1 . Propulsion . | . . . Utility 1 | . . 2 Weapon 2 | . 2 3 Tool/Special . | . . . Unused Backups 8 | . 2 6 Power . | . . . Propulsion 1 | . 1 . Utility 3 | . . 3 Weapon 4 | . 1 3 Tool/Special . | . . . Average Slot Usage (%) 84 | . 85 83 Engine 14 | . 14 14 Leg 27 | . 28 26 Storage 14 | . 14 14 Ballistic Gun 3 | . 6 . Impact Weapon 24 | . 21 28 Peak Build Rating 9 | 6 7 9 Average Rating 6 | 4 5 8 On Entrance 4 | . 6 6 Avg Prop Armor Cover (%) . | . . . Naked Turns . | . . . Heaviest Build 29 | 13 29 29 Greatest Support 40 | 40 20 25 Greatest Overweight (x) 2 | 1 1 2 Average Overweight (x) . | . . 1 Largest Inventory Capacity 15 | 8 15 15 Average Capacity 12 | 7 11 15 Most Carried 8 | 2 7 8 Average Carried 4 | . 3 6 Final Capacity 15 | 8 15 15 Final Carried 6 | 1 4 6 Class Distribution -------------------- 100% | Mutant Dominant Class ---------------- Mutant | -10/Materials Mutant | -10/Mines Resources | -11 -10 -10 ----------- Run | Yrd Mat Min Matter Collected 354 | 219 115 20 Remotely . | . . . Salvage Created 799 | . 540 259 Parts 25 | . 16 9 Haulers Intercepted 2 | . 2 . Recyclers Shooed . | . . . Parts Field Recycled . | . . . Retrieved Matter . | . . . Parts Self-Destructed . | . . . Prevented . | . . . Parts Restored . | . . . Kills | -11 -10 -10 ------- Run | Yrd Mat Min Combat Hostiles Destroyed 19 | . 10 9 Melee 10 | . 7 3 Classes Destroyed 9 | . 6 3 Worker 3 | . 3 . Builder 2 | . 2 . Tunneler 2 | . . 2 Hauler 2 | . 2 . Recycler 1 | . . 1 Operator 1 | . 1 . Swarmer 9 | . 3 6 Grunt 9 | . 7 2 Assembled 1 | . . 1 Best Kill Streak 3 | . 3 3 Combat Bots Only 3 | . 3 3 Max Kills in Single Turn 1 | . 1 1 Gunslinging . | . . . Exploded . | . . . Melee 1 | . 1 1 Uniques/NPCs Destroyed . | . . . Combat | -11 -10 -10 -------- Run | Yrd Mat Min Hostile Shots Fired 109 | . 42 67 Missed 35 | . 16 19 Hits 74 | . 26 48 Projectile 74 | . 26 48 Critical Strikes 1 | . . 1 Damage Taken 741 | . 266 475 Core 254 | . 41 213 Absorbed by Shields . | . . . Core Remaining (%) 100 | 100 . . Volleys Fired 1 | . 1 . Largest 2 | . 2 . Hottest 40 | . 40 . Shots Fired 2 | . 2 . Gun 2 | . 2 . Cannon . | . . . Launcher . | . . . Special . | . . . Kinetic 2 | . 2 . Thermal . | . . . Explosive . | . . . Electromagnetic . | . . . Robot Hit Streak 2 | . 2 . Robot Miss Streak . | . . . Penetration Max . | . . . Secondary Targets . | . . . Shots Hit Robots 60 | . 34 26 Core Hits 10 | . 9 1 Critical Kills 3 | . 3 . Critical Parts Destroyed 16 | . 9 7 Critical Strikes 19 | . 12 7 Smash 19 | . 12 7 Melee Attacks 81 | . 45 36 Impact 81 | . 45 36 Slashing . | . . . Piercing . | . . . Sneak Attacks 14 | . 9 5 Combat Hostiles 1 | . . 1 Follow-up Attacks 12 | . 5 7 Damage Inflicted 1947 | . 1142 805 Guns 23 | . 23 . Cannons . | . . . Explosions . | . . . Melee 1924 | . 1119 805 Ramming . | . . . Kinetic 23 | . 23 . Thermal . | . . . Explosive . | . . . Electromagnetic . | . . . Impact 1924 | . 1119 805 Slashing . | . . . Piercing . | . . . Highest Corruption . | . . . Average Corruption . | . . . Corruption Purged . | . . . Corruption Blocked . | . . . Overload Shots . | . . . Overflow Damage 754 | . 440 314 Projectiles . | . . . Explosions . | . . . Melee 754 | . 440 314 Knockbacks 7 | . 6 1 Impact 7 | . 6 1 Kinetic . | . . . Secondary . | . . . Self-Inflicted Damage . | . . . Shots . | . . . Rammed . | . . . Targets Rammed . | . . . Kicked . | . . . Crushed . | . . . Highest Temperature . | . . . Average Temperature . | . . . Received Heat Transfer 144 | . 108 36 Siege Activations . | . . . Martial Activations . | . . . Shielding Activations . | . . . Robots Disrupted . | . . . Combat Hostiles . | . . . Robots Corrupted 14 | . 6 8 Combat Hostiles 9 | . 3 6 Parts Fried 19 | . 13 6 Impact Corruptions 38 | . 20 18 Robots Melted . | . . . Combat Hostiles . | . . . Parts Melted . | . . . Heat Transferred . | . . . Parts Sabotaged . | . . . Parts Stolen . | . . . Parts Stripped . | . . . Power Chain Reactions . | . . . Alert | -11 -10 -10 ------- Run | Yrd Mat Min Maximum Alert Level . | . . . Low Security (%) 100 | 100 100 100 Level 1 . | . . . Level 2 . | . . . Level 3 . | . . . Level 4 . | . . . Level 5 . | . . . High Security . | . . . Max Security . | . . . Peak Influence 116 | . 108 116 Initial 13 | . . 13 Average 38 | . 47 32 Influence Increases 585 | . 335 250 Destroy 0b10 Robot/C 360 | . 200 160 Destroy 0b10 Robot/NC 55 | . 40 15 Destroy Leader 84 | . 54 30 Successful Hack 26 | . 26 . Lose Combat Pursuer 60 | . 15 45 Influence Decreases 559 | . 299 260 Entered New Map 23 | . . 23 Time Decay 516 | . 289 227 Lost Part 20 | . 10 10 Squads Dispatched 2 | . 2 . Investigation . | . . . Extermination . | . . . Reinforcement 2 | . 2 . Assault . | . . . Garrison . | . . . Intercept . | . . . Searches Triggered . | . . . Construction Impeded . | . . . Haulers Reinforced . | . . . Active Scanning Responses . | . . . Cargo Convoy Interrupts . | . . . Stealth | -11 -10 -10 --------- Run | Yrd Mat Min Distress Signals 2 | . 2 . Communications Jammed . | . . . Distress Signals . | . . . Times Spotted 39 | . 20 19 Peak Tracking Total 5 | . 4 5 Tactical Retreats 3 | . 1 2 Traps | -11 -10 -10 ------- Run | Yrd Mat Min Traps Triggered . | . . . Indirectly . | . . . Trap Hack Attempts . | . . . Triggered . | . . . Disarmed . | . . . Reprogrammed . | . . . Reused . | . . . Traps Extracted . | . . . Installed . | . . . Triggered . | . . . Machines | -11 -10 -10 ---------- Run | Yrd Mat Min Machines Disabled . | . . . Max in Single Turn . | . . . Machines Repaired . | . . . Machines Dismantled . | . . . Machines Sabotaged . | . . . Overloaded Fab Kills . | . . . Hacking | -11 -10 -10 --------- Run | Yrd Mat Min Machines Accessed 6 | . 5 1 Terminals 5 | . 5 . Fabricators . | . . . Repair Stations . | . . . Recycling Units . | . . . Scanalyzers . | . . . Garrison Access . | . . . Total Hacks 13 | . 12 1 Successful 8 | . 7 1 Failed 5 | . 5 . Catastrophic . | . . . Database Lockouts . | . . . Manual 9 | . 9 . Terminals 12 | . 12 . Fabricators . | . . . Repair Stations . | . . . Recycling Units . | . . . Scanalyzers . | . . . Garrison Access . | . . . Terminal Hacks 3 | . 2 1 Prototype ID Bank 1 | . 1 . Open Door 1 | . . 1 Terminal Index 1 | . 1 . Fabricator Hacks . | . . . Repair Station Hacks . | . . . Recycling Unit Hacks . | . . . Scanalyzer . | . . . Garrison Access Hacks . | . . . Unauthorized Hacks 5 | . 5 . Terminals 5 | . 5 . Botnet 4 | . 4 . Operators 1 | . 1 . Fabricators . | . . . Repair Stations . | . . . Recycling Units . | . . . Scanalyzers . | . . . Garrison Access . | . . . Data Cores Recovered 1 | . 1 . Used . | . . . Hacking Detections 1 | . 1 . Full Trace Events . | . . . Feedback Events . | . . . Feedback Blocked . | . . . Robot Schematics Acquired . | . . . Robots Built . | . . . Authchips . | . . . Time . | . . . Total Robot Build Rating . | . . . Part Schematics Acquired . | . . . Parts Built . | . . . Authchips . | . . . Time . | . . . Total Part Build Rating . | . . . Part Studies Acquired . | . . . Parts Repaired . | . . . Time . | . . . Parts Recycled . | . . . Recycled Matter . | . . . Retrieved Matter . | . . . Retrieved Components . | . . . Parts Scanalyzed . | . . . Part Schematics Acquired . | . . . Parts Damaged . | . . . Bothacking | -11 -10 -10 ------------ Run | Yrd Mat Min Used RIF Installer . | . . . Robots Hacked . | . . . Non-combat . | . . . Combat . | . . . Robot Hacks Applied . | . . . Relay Couplers Released . | . . . Fabnet Peak Effective % . | . . . Robots Rewired . | . . . Allies Hacked . | . . . Hacks Repelled . | . . . Allies | -11 -10 -10 -------- Run | Yrd Mat Min Total Allies . | . . . Largest Group . | . . . Highest-Rated Group . | . . . Highest-Rated Ally . | . . . Total Orders . | . . . Ally Attacks . | . . . Total Damage . | . . . Kills . | . . . Allies Corrupted . | . . . Allies Melted . | . . . Intel | -11 -10 -10 ------- Run | Yrd Mat Min Active Infowar (turns) . | . . . Robot Analysis Total . | . . . Derelict Logs Recovered 1 | . . 1 Drone Launches . | . . . Drone Recoveries . | . . . Exploration | -11 -10 -10 ------------- Run | Yrd Mat Min Turns Passed 1782 | 84 918 780 Spaces Moved 931 | 51 554 326 Core 5 | 5 . . Treads 17 | 17 . . Legs 909 | 29 554 326 Wheels . | . . . Hover . | . . . Flight . | . . . Fastest Speed 50 | 50 120 190 Average Speed 157 | 130 137 194 Slowest Speed 260 | 190 190 260 Overloaded Moves . | . . . Propulsion Burnouts . | . . . Robots Hopped . | . . . Potential Cave-ins . | . . . Cave-ins Triggered . | . . . Exploration Rate (%) 48 | 4 85 56 Regions Visited 2 Branch Regions 1 Pre-discovered Areas . | . . . Known Exits Taken . | . . . Unknown Exits Taken 2 | 1 1 . Scrap Searched 1 | . . 1 Spaces Dug . | . . . Terrain Destroyed . | . . . Melee . | . . . Projectile . | . . . AOE . | . . . Terrain Rammed . | . . . Walls Destroyed . | . . . Machines Disabled . | . . . Actions | -11 -10 -10 --------- Run | Yrd Mat Min Total 1129 | 69 640 420 Wait 85 | . 28 57 Move 929 | 50 553 326 Hop . | . . . Pick Up 22 | 9 9 4 Fast Attach 1 | . 1 . Attach 11 | 8 1 2 Detach 1 | . . 1 Swap 4 | . 3 1 Drop 9 | 2 6 1 Fire 1 | . 1 . Melee 66 | . 38 28 Ram . | . . . Kick . | . . . Crush . | . . . Escape Stasis . | . . . Rewire . | . . . Trap . | . . . Miscellaneous . | . . . Route ------- -11/Scrapyard -10/Materials (discovered 4 exits: [*Mat x3] / *Min) -10/Mines (discovered 2 exits: [*Mat x2]) History --------- Turn | Location | Event 3 | -11/Scrapyard | Discovered new exit (range 16) 85 | -11/Scrapyard | Entered Materials 342 | -10/Materials | Build established: Mutant 347 | -10/Materials | Discovered new exit (range 16) 551 | -10/Materials | Discovered new exit (range 15) 828 | -10/Materials | Discovered new exit (range 8) 930 | -10/Materials | Discovered new exit (range 12) 1003 | -10/Materials | Entered Mines 1031 | -10/Mines | Learned 2 Materials zone layouts 1075 | -10/Mines | Found a damaged Exp. Sensor Array with a note attached 1079 | -10/Mines | Found Prototype Device 1091 | -10/Mines | Discovered new exit (range 9) 1109 | -10/Mines | Met a Derelict who couldn't figure out how to use a Trap Extractor 1433 | -10/Mines | Discovered new exit (range 8) 1453 | -10/Mines | Core integrity fell below 50% 1656 | -10/Mines | Assembled infested the area 1661 | -10/Mines | Assisted by a Guerilla fighting off Assembled 1778 | -10/Mines | Core integrity fell below 20% 1783 | -10/Mines | Destroyed by as-44600 with Assembled Heavy Rifle Last Messages --------------- dispatching Demolisher response squad. 01661_ A derelict emerges from the shadows: "You need to get out of here! I've been tracking a group of Assembled to figure out where they're coming from, and they're closing on this area, come on!" 01700_ as-56683 sneak attacks. 01700_ R-06 Scavenger system corrupted by crushing effect. 01732_ The unstable cave ceiling collapses. 01732_ D-53 Grenadier knocked back. 01774_ as-19076 suffers critical hit (Smash). 01774_ Destroyed Asb. Hover Unit. 01774_ as-19076 system corrupted by crushing effect. 01776_ Aluminum Leg destroyed. 01776_ Destroyed Asb. Rifle. 01776_ as-19076 system corrupted by crushing effect. 01776_ as-19076 destroyed. Map ----- +----------------------------------------------------+ | #????# ## ### ##?# #??????? | | ###### ### #?## ###| #??????? | | ##?# ##?## #!%#??????? | | ########## ###?## ##?### ## ]#??????? | | ?????########?### #???## ##### #??????? | | ????## #???## #????## #??## ###????? | | ????# ???# #?????# #?## ##???? | | ????# ???# [ ##?????# ### #???? | | ?????# #### % ###????### #???? | | ??????# [%## ##???#### """ ##???? | | ??????# [ #????# """ ##????? | | ??????# % #????# """ ##?????? | | ??????## % ##????# ## ##?????? | | ???????##### ##?????# ### #### #?????? | | ???????????#####?????## ##?#####??# #?????? | | ???###??????????????## ##????????# #?????? | | ???# ##????????????# #????????# #?????? | | ???# #???????????# #???????# #?????? | | ???# #??????????## #??????## #?????? | | ????# #?????######### #?????## #?????? | | ?????# ###?## ##?###????## #?????? | | ?????# ### ##???????# #?????? | | ????## ####????# ##?????? | | ????# aa ##???# ##??????? | | ???# #???## ####????? | | ???# ### @ ##????# #????? | | ???## ##?# ###?????# #????? | | ????######### ###??#a#???????#### #????? | | ????????????## ###????# ??????????# #????? | | ?????????????####????# ??????????# #????? | | ????????????????????? ###??????# #????? | | ?????????????????????# [%*#??????# #????? | | ???????????????????? !*#??????# #????? | | ??????????????????? * #??????# #????? | | ?????? ?????? #[#=#??????# #????? | | ?????? ?[#*#??????# #????? | | ?????? % #? #%#??????# ##???? | | ?????????????# #?## #?????## ##??? | | ?????????????## #?# #????## ##?? | | ??????????????# ## #?#### #?? | | ?????????????# ## ### #?? | | ????????????# ## #?? | | ????????????# ##### ##?? | | ????????????## ##???## ##??? | | ?????????????# ##?????## #???? | | ?????????????## ##???????##### ##???? | | ??????????????##### #????????????# ##????? | | ??????????????????### #????????????# #?????? | | ?????????????????????# ????????????#=#?????? | | ?????????????????????? ????????????#*#?????? | +----------------------------------------------------+ Best States ------------- Heat Dissipation 25 Energy Generation 10 Energy Capacity 250 Matter Stores 300 Matter Capacity 300 Sight Range 16 Terrain Scan Density 10 Evasion (%) 55 Recoil Reduction 2 Item Schematics ----------------- None Robot Schematics ------------------ None Fabricated ------------ Nothing Repaired ---------- Nothing Studied --------- None Alien Tech Used ----------------- None Achievements -------------- None Challenges ------------ None Game ------ Seed FieldScatterMallet Manual? 0 Play Time 00:08:31 Cumulative 310.4 hours Start 2026.09.21 @ 17:06:56 End 2026.09.21 @ 17:15:14 Sessions 1 Manual Loads 0 Difficulty Rogue Special Mode None Game No. 336 Rogue 336 Adventurer 0 Explorer 0 Win Type - Total 3 Types 3/0/0/0/0/0/0/0/0/0 Lore% 46 Gallery% 59 Achievement% 45 Wizard Run 0 Options --------- Layout 1 ASCII 0 Keyboard 0 Movement Numpad Keybinds 0 Fullscreen 2 Font 24/Smallcaps Map View 50x35 Zoom Use 0% Tactical HUD 1 Map Filters NONE Filters NONE Steam 1 RUN: 022df75d-edec-4b12-bd84-64561419fb54